fUSD/lending_fUSD_20260207
["ID","MTS","AMOUNT","RATE_DAILY","PERIOD"]
[404696968,1770478286284,-5000.0,0.00024339,2]
[404696969,1770478286294,-5000.0,0.00024339,2]
[404696970,1770478286303,-5000.0,0.00024339,2]
[404696971,1770478286314,-5000.0,0.00024339,2]
[404696972,1770478286323,-5000.0,0.00024339,2]
[404696973,1770478286333,-401.19111454,0.00024373,2]
[404696974,1770478286342,-644.79446246,0.00024376,2]
[404696975,1770478286352,-804.17102365,0.00024376,2]
[404696976,1770478286362,-245.30258564,0.00024399,4]
[404696977,1770478286372,-150.0,0.00024481,4]
[404696978,1770478286382,-150.0,0.00024589,4]
[404696979,1770478286391,-150.0,0.00024609,4]
[404696980,1770478286400,-150.0,0.00024626,4]
[404696981,1770478286410,-150.0,0.00024626,4]
[404696982,1770478286420,-161.34799177,0.00024642,2]
[404696983,1770478286430,-245.30258564,0.00024644,4]
[404696984,1770478286441,-1000.0,0.00024658,2]
[404696985,1770478286450,-289.68,0.00024658,2]
[404696986,1770478286460,-153.490758,0.00024658,2]
[404696987,1770478286470,-150.0,0.00024658,2]
[404696988,1770478286479,-245.653065,0.00024658,2]
[404696989,1770478286488,-150.0,0.00024745,4]
[404696990,1770478286497,-232.85529757,0.00024765,56]
[404696991,1770478286508,-150.0,0.0002478,4]
[404696992,1770478286517,-150.0,0.00024839,4]
[404696993,1770478286527,-150.0,0.00024839,4]
[404696994,1770478286536,-245.30258564,0.00024888,4]
[404696995,1770478286546,-48591.32562329,0.000249,7]
[404696996,1770478286556,-160.0,0.000249,7]
[404696997,1770478286566,-216.0,0.0002493,30]
[404696998,1770478286575,-500.0,0.00024932,7]
[404696999,1770478286585,-500.0,0.00024932,7]
[404697000,1770478286595,-150.0,0.00024982,4]
[404697001,1770478286605,-150.0,0.00024982,4]
[404697002,1770478286614,-150.0,0.00024993,4]
[404697003,1770478286625,-887.02592095,0.00025,30]
[404697004,1770478286635,-523.85345498,0.00025,30]
[404697005,1770478286644,-150.0,0.00025,17]
[404697006,1770478286653,-151.2,0.00025,2]
[404697007,1770478286662,-160.0,0.00025,30]
[404697008,1770478286671,-17950.65949649,0.00025,2]
[404697009,1770478286680,-151.0,0.00025,2]
[404697010,1770478286690,-160.0,0.00025,30]
[404697011,1770478286700,-150.0,0.00025006,4]
[404697012,1770478286710,-150.0,0.00025078,4]
[404697013,1770478286720,-245.30258564,0.00025133,4]
[404697014,1770478286729,-674.020101,0.00025206,30]
[404697015,1770478286738,-150.0,0.00025219,4]
[404697016,1770478286748,-150.0,0.00025338,4]
[404697017,1770478286759,-150.0,0.00025338,4]
[404697018,1770478286769,-150.0,0.00025377,4]
[404697019,1770478286779,-150.0,0.00025377,4]
[404697020,1770478286789,-150.0,0.00025377,4]
[404697021,1770478286799,-245.30258564,0.00025377,4]
[404697022,1770478286809,-150.0,0.00025377,4]
[404697023,1770478286819,-150.0,0.00025423,4]
[404697024,1770478286829,-507.0,0.00025489,8]
[404697025,1770478286839,-1000.0,0.00025535,2]
[404697026,1770478286848,-245.30258564,0.00025622,4]
[404697027,1770478286858,-150.0,0.00025676,4]
[404697028,1770478286868,-150.0,0.00025693,4]
[404697029,1770478286878,-150.0,0.00025693,4]
[404697030,1770478286887,-150.0,0.00025693,4]
[404697031,1770478286896,-150.0,0.00025693,4]
[404697032,1770478286906,-416.03518578,0.00025742,2]
[404697033,1770478286915,-150.0,0.00025761,4]
[404697034,1770478286924,-150.0,0.00025841,4]
[404697035,1770478286934,-245.30258564,0.00025866,4]
[404697036,1770478286943,-150.0,0.0002589,2]
[404697037,1770478286953,-150.0,0.00025975,4]
[404697038,1770478286966,-150.0,0.00026,20]
[404697039,1770478286975,-33743.16824448,0.00026,10]
[404697040,1770478286984,-160.0,0.00026,10]
[404697041,1770478286993,-160.0,0.00026,10]
[404697042,1770478287004,-700.0,0.00026028,7]
[404697043,1770478287016,-150.0,0.00026049,4]
[404697044,1770478287025,-150.0,0.00026049,4]
[404697045,1770478287037,-150.0,0.00026049,4]
[404697046,1770478287048,-245.30258564,0.0002611,4]
[404697047,1770478287057,-150.0,0.00026145,4]
[404697048,1770478287066,-150.0,0.00026168,4]
[404697049,1770478287076,-2447.0,0.00026256,2]
[404697050,1770478287086,-150.0,0.00026258,4]
[404697051,1770478287096,-150.0,0.00026273,4]
[404697052,1770478287105,-4290.61608061,0.000263,2]
[404697053,1770478287116,-245.30258564,0.00026355,4]
[404697054,1770478287126,-150.0,0.00026405,4]
[404697055,1770478287136,-150.0,0.00026405,4]
[404697056,1770478287146,-150.0,0.00026453,4]
[404697057,1770478287155,-150.0,0.00026529,4]
[404697058,1770478287165,-150.0,0.00026572,4]
[404697059,1770478287175,-245.30258564,0.00026599,4]
[404697060,1770478287184,-150.0,0.00026642,4]
[404697061,1770478287194,-150.0,0.00026675,4]
[404697062,1770478287203,-150.0,0.00026761,4]
[404697063,1770478287213,-150.0,0.00026761,4]
[404697064,1770478287223,-507.0,0.00026787,9]
[404697065,1770478287232,-245.30258564,0.00026844,4]
[404697066,1770478287242,-150.0,0.00026871,4]
[404697067,1770478287252,-150.0,0.00026913,4]
[404697068,1770478287262,-5000.0,0.00026914,30]
[404697069,1770478287273,-150.0,0.00027,23]
[404697070,1770478287283,-7465.40344643,0.00027,2]
[404697071,1770478287292,-164.48774038,0.00027,2]
[404697072,1770478287302,-245.30258564,0.00027088,4]
[404697073,1770478287311,-150.0,0.00027092,4]
[404697074,1770478287320,-431.42848765,0.00027111,2]
[404697075,1770478287330,-668.65185757,0.00027115,2]
[404697076,1770478287445,-833.92535153,0.00027115,2]
[404697077,1770478287455,-150.0,0.00027117,4]
[404697078,1770478287465,-150.0,0.00027117,4]
[404697079,1770478287475,-150.0,0.00027117,4]
[404697080,1770478287485,-150.0,0.00027117,4]
[404697081,1770478287495,-500.0,0.00027124,7]
[404697082,1770478287504,-500.0,0.00027124,7]
[404697083,1770478287515,-150.0,0.00027169,4]
[404697084,1770478287525,-150.0,0.00027185,2]
[404697085,1770478287535,-150.0,0.00027298,4]
[404697086,1770478287544,-245.30258564,0.00027332,4]
[404697087,1770478287553,-150.0,0.00027369,2]
[404697088,1770478287563,-314.40114675,0.0002737,2]
[404697089,1770478287573,-184.94185103,0.0002737,2]
[404697090,1770478287583,-1000.0,0.00027397,2]
[404697091,1770478287593,-289.68,0.00027397,2]
[404697092,1770478287603,-663.89,0.00027397,30]
[404697093,1770478287613,-300.0,0.00027397,2]
[404697094,1770478287622,-1000.0,0.00027397,20]
[404697095,1770478287632,-151.0,0.00027397,2]
[404697096,1770478287642,-409.472256,0.00027397,2]
[404697097,1770478287651,-151.0,0.00027397,2]
[404697098,1770478287661,-409.472256,0.00027397,2]
[404697099,1770478287671,-151.0,0.00027397,2]
[404697100,1770478287681,-409.472256,0.00027397,2]
[404697101,1770478287690,-151.0,0.00027397,2]
[404697102,1770478287700,-409.472256,0.00027397,2]
[404697103,1770478287709,-151.0,0.00027397,2]
[404697104,1770478287719,-409.472256,0.00027397,2]
[404697105,1770478287728,-151.0,0.00027397,2]
[404697106,1770478287739,-409.472256,0.00027397,2]
[404697107,1770478287748,-409.472256,0.00027397,2]
[404697108,1770478287758,-151.0,0.00027397,2]
[404697109,1770478287768,-409.472256,0.00027397,2]
[404697110,1770478287778,-151.0,0.00027397,2]
[404697111,1770478287787,-409.472256,0.00027397,2]
[404697112,1770478287797,-151.0,0.00027397,2]
[404697113,1770478287807,-409.472256,0.00027397,2]
[404697114,1770478287817,-151.0,0.00027397,2]
[404697115,1770478287827,-409.472256,0.00027397,2]
[404697116,1770478287837,-151.0,0.00027397,2]
[404697117,1770478287847,-409.472256,0.00027397,2]
[404697118,1770478287856,-151.0,0.00027397,2]
[404697119,1770478287866,-409.472256,0.00027397,2]
[404697120,1770478287876,-409.472256,0.00027397,2]
[404697121,1770478287886,-151.0,0.00027397,2]
[404697122,1770478287895,-409.472256,0.00027397,2]
[404697123,1770478287905,-151.0,0.00027397,2]
[404697124,1770478287915,-409.472256,0.00027397,2]
[404697125,1770478287924,-151.0,0.00027397,2]
[404697126,1770478287934,-409.472256,0.00027397,2]
[404697127,1770478287943,-234.259121,0.00027397,2]
[404697128,1770478287956,-409.472256,0.00027397,2]
[404697129,1770478287966,-409.472256,0.00027397,2]
[404697130,1770478287976,-409.472263,0.00027397,2]
[404697131,1770478287986,-150.0,0.00027397,5]
[404697132,1770478287998,-150.0,0.00027468,7]
[404697133,1770478288010,-150.0,0.00027473,7]
[404697134,1770478288020,-150.0,0.00027473,7]
[404697135,1770478288032,-872.25,0.000275,15]
[404697136,1770478288041,-11901.485902,0.000275,120]
[404697137,1770478288051,-150.0,0.00027509,7]
[404697138,1770478288062,-245.30258564,0.00027577,7]
[404697139,1770478288072,-150.0,0.00027591,7]
[404697140,1770478288081,-150.0,0.00027682,7]
[404697141,1770478288091,-232.85529756,0.00027699,120]
[404697142,1770478288102,-150.0,0.00027767,7]
[404697143,1770478288112,-245.30258564,0.00027821,7]
[404697144,1770478288122,-150.0,0.00027828,7]
[404697145,1770478288132,-150.0,0.00027828,7]
[404697146,1770478288142,-150.0,0.00027927,7]
[404697147,1770478288152,-250.0,0.00027945,5]
[404697148,1770478288163,-1000.0,0.00027945,2]
[404697149,1770478288176,-150.0,0.00028,26]
[404697150,1770478288199,-150.0,0.00028066,7]
[404697151,1770478288217,-150.0,0.00028066,7]
[404697152,1770478288237,-150.0,0.00028066,7]
[404697153,1770478288255,-245.30258564,0.00028066,7]
[404697154,1770478288276,-150.0,0.00028066,7]
[404697155,1770478288296,-150.0,0.00028066,7]
[404697156,1770478288318,-150.0,0.00028066,7]
[404697157,1770478288339,-150.0,0.00028066,7]
[404697158,1770478288360,-150.0,0.00028066,7]
[404697159,1770478288380,-507.0,0.00028085,10]
[404697160,1770478288396,-150.0,0.00028184,7]
[404697161,1770478288416,-150.0,0.00028184,7]
[404697162,1770478288430,-700.0,0.0002822,14]
[404697163,1770478288448,-245.30258564,0.0002831,7]
[404697164,1770478288464,-150.0,0.00028344,7]
[404697165,1770478288480,-150.0,0.00028364,7]
[404697166,1770478288496,-150.0,0.0002845,7]
[404697167,1770478288512,-447.3913417,0.0002848,2]
[404697168,1770478288527,-165.75,0.00028493,2]
[404697169,1770478288543,-350.0,0.00028493,5]
[404697170,1770478288559,-1000.0,0.00028493,2]
[404697171,1770478288574,-151.0,0.000285,2]
[404697172,1770478288589,-150.0,0.0002854,7]
[404697173,1770478288606,-150.0,0.0002854,7]
[404697174,1770478288622,-150.0,0.0002854,7]
[404697175,1770478288639,-150.0,0.0002854,7]
[404697176,1770478288655,-150.0,0.00028544,2]
[404697177,1770478288672,-245.30258564,0.00028554,7]
[404697178,1770478288687,-150.0,0.00028663,7]
[404697179,1770478288702,-150.0,0.00028761,7]
[404697180,1770478288718,-245.30258564,0.00028799,7]
[404697181,1770478288735,-150.0,0.00028834,7]
[404697182,1770478288751,-150.0,0.00028896,7]
[404697183,1770478288767,-150.0,0.00028896,7]
[404697184,1770478288783,-150.0,0.00028962,7]
[404697185,1770478288800,-150.0,0.00029,29]
[404697186,1770478288815,-151.0,0.00029,2]
[404697187,1770478288831,-150.0,0.00029015,7]
[404697188,1770478288848,-441.40961792,0.00029041,5]
[404697189,1770478288864,-1000.0,0.00029041,2]
[404697190,1770478288880,-245.30258564,0.00029043,7]
[404697191,1770478288896,-2782.229458,0.00029102,15]
[404697192,1770478288911,-150.0,0.00029178,7]
[404697193,1770478288927,-150.0,0.00029218,7]
[404697194,1770478288943,-150.0,0.00029252,7]
[404697195,1770478288962,-150.0,0.00029252,7]
[404697196,1770478288977,-2447.0,0.00029256,2]
[404697197,1770478288993,-150.0,0.00029261,7]
[404697198,1770478289010,-245.30258564,0.00029288,7]
[404697199,1770478289025,-500.0,0.00029316,14]
[404697200,1770478289044,-500.0,0.00029316,14]
[404697201,1770478289060,-507.0,0.00029383,11]
[404697202,1770478289074,-4070.0,0.00029463,7]
[404697203,1770478289090,-150.0,0.00029489,7]
[404697204,1770478289106,-962.55,0.000295,14]
[404697205,1770478289123,-245.30258564,0.00029532,7]
[404697206,1770478289138,-150.0,0.00029559,7]
[404697207,1770478289155,-1000.0,0.00029589,2]
[404697208,1770478289171,-150.0,0.00029595,7]
[404697209,1770478289187,-150.0,0.00029602,7]
[404697210,1770478289202,-150.0,0.00029608,7]
[404697211,1770478289218,-150.0,0.00029608,7]
[404697212,1770478289236,-150.0,0.00029679,7]
[404697213,1770478289252,-150.0,0.00029679,7]
[404697214,1770478289268,-245.30258564,0.00029777,7]
[404697215,1770478289284,-151.0,0.000298,5]
[404697216,1770478289300,-463.94482134,0.00029849,2]
[404697217,1770478289316,-693.3919763,0.00029854,2]
[404697218,1770478289336,-269.24327996,0.00029854,2]
[404697219,1770478289351,-150.0,0.00029858,7]
[404697220,1770478289368,-700.0,0.00029864,14]
[404697221,1770478289383,-67261.39971593,0.000299,2]
[404697222,1770478289561,-150.0,0.00029963,7]
[404697223,1770478289580,-150.0,0.00029963,7]
[404697224,1770478289590,-150.0,0.00029963,7]
[404697225,1770478289605,-150.0,0.00029963,7]
[404697226,1770478289619,-150.0,0.00029971,2]
[404697227,1770478289633,-150.0,0.00029986,7]
[404697228,1770478289649,-237.38329208,0.0002999,2]
[404697229,1770478289660,-150.0,0.0003,32]
[404697230,1770478289672,-487.19072603,0.0003,30]
[404697231,1770478289682,-7506.636748,0.0003,2]
[404697232,1770478289692,-5050.0,0.0003,7]
[404697233,1770478289702,-158.38015707,0.0003,2]
[404697234,1770478289712,-151.0,0.0003,2]
[404697235,1770478289722,-151.0,0.0003,2]
[404697236,1770478289732,-100000.08051634,0.0003,30]
[404697237,1770478289741,-160.0,0.0003,30]
[404697238,1770478289750,-150.0,0.0003,120]
[404697239,1770478289762,-591.5075181,0.0003,7]
[404697240,1770478289771,-19882.05445285,0.0003,2]
[404697241,1770478289781,-1818.83836505,0.0003,2]
[404697242,1770478289791,-163.14671548,0.0003,2]
[404697243,1770478289801,-160.0,0.0003,120]
[404697244,1770478289811,-150.0,0.00030013,7]
[404697245,1770478289822,-245.30258564,0.00030021,7]
[404697246,1770478289832,-289.68,0.00030137,2]
[404697247,1770478289842,-1820.893558,0.00030137,7]
[404697248,1770478289852,-1820.893558,0.00030137,7]
[404697249,1770478289862,-1820.893558,0.00030137,7]
[404697250,1770478289872,-1820.893558,0.00030137,7]
[404697251,1770478289881,-1820.893558,0.00030137,7]
[404697252,1770478289891,-1820.893558,0.00030137,7]
[404697253,1770478289901,-1820.893558,0.00030137,7]
[404697254,1770478289912,-1820.893558,0.00030137,7]
[404697255,1770478289923,-1820.893558,0.00030137,7]
[404697256,1770478289932,-1820.893558,0.00030137,7]
[404697257,1770478289941,-1820.893558,0.00030137,7]
[404697258,1770478289953,-1820.893558,0.00030137,7]
[404697259,1770478289964,-1820.893558,0.00030137,7]
[404697260,1770478289974,-1820.893558,0.00030137,7]
[404697261,1770478289983,-1820.893558,0.00030137,7]
[404697262,1770478289994,-1820.893558,0.00030137,7]
[404697263,1770478290004,-1820.893558,0.00030137,7]
[404697264,1770478290015,-1820.893558,0.00030137,7]
[404697265,1770478290025,-1820.893558,0.00030137,7]
[404697266,1770478290042,-1820.893552,0.00030137,7]
[404697267,1770478290052,-178.512147,0.00030137,7]
[404697268,1770478290063,-1000.0,0.00030137,2]
[404697269,1770478290072,-150.0,0.00030157,7]
[404697270,1770478290082,-245.30258564,0.00030265,7]
[404697271,1770478290092,-150.0,0.00030319,7]
[404697272,1770478290102,-150.0,0.00030319,7]
[404697273,1770478290112,-150.0,0.0003037,7]
[404697274,1770478290122,-150.0,0.0003043,7]
[404697275,1770478290132,-150.0,0.00030438,7]
[404697276,1770478290142,-639.5,0.00030447,30]
[404697277,1770478290151,-150.0,0.00030455,7]
[404697278,1770478290161,-245.30258564,0.0003051,7]
[404697279,1770478290171,-150.0,0.00030675,7]
[404697280,1770478290181,-150.0,0.00030675,7]
[404697281,1770478290191,-507.0,0.00030681,13]
[404697282,1770478290201,-1000.0,0.00030685,2]
[404697283,1770478290210,-1000.0,0.00030744,2]
[404697284,1770478290220,-150.0,0.00030754,7]
[404697285,1770478290229,-150.0,0.00030754,7]
[404697286,1770478290239,-150.0,0.00030754,7]
[404697287,1770478290249,-245.30258564,0.00030754,7]
[404697288,1770478290259,-150.0,0.00030754,7]
[404697289,1770478290270,-150.0,0.00030847,7]
[404697290,1770478290279,-160.0,0.000309,30]
[404697291,1770478290289,-150.0,0.00030912,7]
[404697292,1770478290299,-32496.69025559,0.0003095,2]
[404697293,1770478290309,-500.0,0.0003096,14]
[404697294,1770478290318,-500.0,0.0003096,14]
[404697295,1770478290329,-245.30258564,0.00030999,7]
[404697296,1770478290338,-251.0,0.00031,34]
[404697297,1770478290348,-1087.0,0.00031,2]
[404697298,1770478290358,-1000.0,0.00031,12]
[404697299,1770478290367,-151.0,0.00031,5]
[404697300,1770478290376,-14008.70955133,0.00031,5]
[404697301,1770478290387,-51598.1926444,0.00031,2]
[404697302,1770478290396,-160.0,0.00031,7]
[404697303,1770478290406,-160.0,0.00031,120]
[404697304,1770478290415,-150.0,0.00031031,7]
[404697305,1770478290424,-150.0,0.00031031,7]
[404697306,1770478290433,-150.0,0.00031053,7]
[404697307,1770478290442,-150.0,0.00031138,7]
[404697308,1770478290451,-481.11077973,0.00031218,2]
[404697309,1770478290459,-1000.0,0.00031233,2]
[404697310,1770478290469,-245.30258564,0.00031243,7]
[404697311,1770478290478,-150.0,0.00031264,7]
[404697312,1770478290488,-5000.0,0.00031281,30]
[404697313,1770478290497,-150.0,0.00031292,7]
[404697314,1770478290506,-200.0,0.00031326,2]
[404697315,1770478290516,-150.0,0.00031352,7]
[404697316,1770478290526,-150.0,0.00031387,7]
[404697317,1770478290537,-150.0,0.00031387,7]
[404697318,1770478290554,-150.0,0.00031387,7]
[404697319,1770478290568,-150.0,0.00031387,7]
[404697320,1770478290578,-150.0,0.0003147,2]
[404697321,1770478290588,-245.30258564,0.00031487,7]
[404697322,1770478290598,-150.0,0.000315,2]
[404697323,1770478290608,-197.47031313,0.000315,2]
[404697324,1770478290618,-539.21608,0.00031508,30]
[404697325,1770478290628,-700.0,0.00031508,14]
[404697326,1770478290639,-150.0,0.00031522,7]
[404697327,1770478290648,-150.0,0.0003165,7]
[404697328,1770478290658,-150.0,0.00031681,7]
[404697329,1770478290667,-245.30258564,0.00031732,7]
[404697330,1770478290677,-150.0,0.00031743,7]
[404697331,1770478290686,-150.0,0.00031743,7]
[404697332,1770478290695,-652.17787876,0.00031744,2]
[404697333,1770478290704,-1000.0,0.00031781,2]
[404697334,1770478290713,-150.0,0.00031861,7]
[404697335,1770478290723,-150.0,0.00031906,7]
[404697336,1770478290733,-150.0,0.00031949,7]
[404697337,1770478290742,-245.30258564,0.00031976,7]
[404697338,1770478290751,-507.0,0.00031979,14]
[404697339,1770478290761,-1000.0,0.00032,12]
[404697340,1770478290771,-223.51761936,0.00032,10]
[404697341,1770478290782,-150.0,0.00032099,7]
[404697342,1770478290792,-150.0,0.00032099,7]
[404697343,1770478290802,-150.0,0.00032099,7]
[404697344,1770478290812,-150.0,0.00032099,7]
[404697345,1770478290822,-245.30258564,0.00032221,7]
[404697346,1770478290832,-663.89,0.00032232,30]
[404697347,1770478290842,-150.0,0.00032248,7]
[404697348,1770478290853,-2447.0,0.00032256,2]
[404697349,1770478290863,-150.0,0.00032291,7]
[404697350,1770478290873,-894.72585091,0.000323,2]
[404697351,1770478290883,-1000.0,0.00032329,2]
[404697352,1770478290893,-150.0,0.00032336,7]
[404697353,1770478290903,-150.0,0.00032454,7]
[404697354,1770478290913,-150.0,0.00032454,7]
[404697355,1770478290923,-245.30258564,0.00032465,7]
[404697356,1770478290933,-151.0,0.000325,7]
[404697357,1770478290942,-150.0,0.00032516,7]
[404697358,1770478290954,-150.0,0.00032547,7]
[404697359,1770478290966,-498.91187858,0.00032587,2]
[404697360,1770478290976,-719.04747942,0.00032593,2]
[404697361,1770478290986,-500.0,0.00032604,14]
[404697362,1770478290997,-317.44795162,0.00032604,14]
[404697363,1770478291007,-150.0,0.00032675,7]
[404697364,1770478291019,-245.30258564,0.0003271,7]
[404697365,1770478291028,-4832.94194423,0.000328,2]
[404697366,1770478291038,-150.0,0.0003281,7]
[404697367,1770478291047,-150.0,0.0003281,7]
[404697368,1770478291056,-150.0,0.0003281,7]
[404697369,1770478291065,-150.0,0.0003281,7]
[404697370,1770478291075,-150.0,0.00032845,7]
[404697371,1770478291084,-419.201529,0.00032849,30]
[404697372,1770478291094,-246.5891347,0.00032849,30]
[404697373,1770478291104,-500.0,0.00032876,2]
[404697374,1770478291114,-500.0,0.00032876,2]
[404697375,1770478291123,-471.36398242,0.00032876,2]
[404697376,1770478291133,-289.68,0.00032877,2]
[404697377,1770478291142,-151.0,0.00032877,31]
[404697378,1770478291152,-151.0,0.00032877,31]
[404697379,1770478291162,-151.0,0.00032877,31]
[404697380,1770478291171,-151.0,0.00032877,31]
[404697381,1770478291181,-259.335999,0.00032877,31]
[404697382,1770478291190,-1000.0,0.00032877,2]
[404697383,1770478291201,-150.0,0.00032905,7]
[404697384,1770478291212,-150.0,0.00032933,7]
[404697385,1770478291221,-245.30258564,0.00032954,7]
[404697386,1770478291231,-1012.81784121,0.00033,5]
[404697387,1770478291241,-543.0,0.00033,2]
[404697388,1770478291250,-1000.0,0.00033,12]
[404697389,1770478291260,-4025.0,0.00033,9]
[404697390,1770478291271,-16168.90589813,0.00033,13]
[404697391,1770478291280,-51333.20631395,0.00033,2]
[404697392,1770478291290,-26396.62372731,0.00033,2]
[404697393,1770478291299,-33314.68127603,0.00033,13]
[404697394,1770478291309,-153.63540437,0.00033,2]
[404697395,1770478291319,-12842.17749406,0.00033,13]
[404697396,1770478291328,-375.325301,0.00033,14]
[404697397,1770478291338,-150.0,0.00033043,2]
[404697398,1770478291348,-150.0,0.00033059,7]
[404697399,1770478291358,-150.0,0.00033144,7]
[404697400,1770478291368,-700.0,0.00033152,14]
[404697401,1770478291495,-150.0,0.00033166,7]
[404697402,1770478291507,-150.0,0.00033166,7]
[404697403,1770478291519,-245.30258564,0.00033198,7]
[404697404,1770478291530,-507.0,0.00033277,15]
[404697405,1770478291539,-150.0,0.00033285,7]
[404697406,1770478291549,-150.0,0.0003335,7]
[404697407,1770478291559,-1000.0,0.00033425,2]
[404697408,1770478291569,-150.0,0.00033443,7]
[404697409,1770478291579,-150.0,0.00033443,7]
[404697410,1770478291589,-150.0,0.00033443,7]
[404697411,1770478291599,-150.0,0.00033443,7]
[404697412,1770478291609,-245.30258564,0.00033443,7]
[404697413,1770478291619,-1212.11725022,0.000335,2]
[404697414,1770478291629,-150.0,0.00033522,7]
[404697415,1770478291639,-150.0,0.00033522,7]
[404697416,1770478291649,-245.30258564,0.00033687,7]
[404697417,1770478291659,-150.0,0.00033742,7]
[404697418,1770478291669,-150.0,0.00033759,7]
[404697419,1770478291680,-150.0,0.00033767,7]
[404697420,1770478291691,-150.0,0.00033827,7]
[404697421,1770478291702,-150.0,0.00033878,7]
[404697422,1770478291714,-150.0,0.00033878,7]
[404697423,1770478291724,-163.0,0.00033928,11]
[404697424,1770478291734,-245.30258564,0.00033932,7]
[404697425,1770478291744,-517.37161808,0.00033956,2]
[404697426,1770478291754,-1024.88049608,0.00033973,2]
[404697427,1770478291764,-4310.21479165,0.00034,7]
[404697428,1770478291774,-150.62377392,0.00034001,2]
[404697429,1770478291783,-264.5458584,0.00034001,31]
[404697430,1770478291793,-150.0,0.0003404,7]
[404697431,1770478291802,-155.74,0.000341,14]
[404697432,1770478291813,-169.28,0.000341,14]
[404697433,1770478291824,-245.30258564,0.00034176,7]
[404697434,1770478291834,-150.0,0.00034184,7]
[404697435,1770478291845,-150.0,0.00034211,7]
[404697436,1770478291855,-150.0,0.00034234,7]
[404697437,1770478291866,-150.0,0.00034234,7]
[404697438,1770478291876,-150.0,0.00034234,7]
[404697439,1770478291886,-150.0,0.00034234,7]
[404697440,1770478291895,-5008.15573244,0.00034243,2]
[404697441,1770478291906,-500.0,0.00034248,14]
[404697442,1770478291915,-150.0,0.00034339,7]
[404697443,1770478291925,-245.30258564,0.0003442,7]
[404697444,1770478291935,-1731.94437755,0.0003449,2]
[404697445,1770478291944,-150.0,0.00034518,7]
[404697446,1770478291956,-150.0,0.00034518,7]
[404697447,1770478291970,-507.0,0.00034574,16]
[404697448,1770478291980,-150.0,0.00034589,7]
[404697449,1770478291991,-150.0,0.00034589,7]
[404697450,1770478292002,-150.0,0.00034595,7]
[404697451,1770478292014,-150.0,0.00034602,7]
[404697452,1770478292023,-150.0,0.00034638,7]
[404697453,1770478292034,-245.30258564,0.00034665,7]
[404697454,1770478292049,-164.1117073,0.00034669,2]
[404697455,1770478292058,-150.0,0.00034696,2]
[404697456,1770478292068,-3498.45,0.00034699,2]
[404697457,1770478292078,-150.0,0.00034708,7]
[404697458,1770478292089,-1050.0,0.00034734,2]
[404697459,1770478292099,-700.0,0.00034796,14]
[404697460,1770478292109,-1000.0,0.000348,5]
[404697461,1770478292119,-245.30258564,0.00034909,7]
[404697462,1770478292129,-150.0,0.00034936,7]
[404697463,1770478292140,-150.0,0.00034945,7]
[404697464,1770478292150,-150.0,0.00034945,7]
[404697465,1770478292160,-150.0,0.00034979,7]
[404697466,1770478292168,-500.0,0.00035,2]
[404697467,1770478292178,-545.0,0.00035,2]